Departmental Area,Entity,Payment Date,Expense type,Expense Area,Supplier Name,Payment Reference,   Invoice Distribution Amount   ,Description,Supplier Type,Expenditure Type
UK Statistics Family,Office for National Statistics,04/01/2022,"ICT Outsourcing, Maintenance And Support",Covid Infection Survey,Equiniti Limited,218076," 61,978.38 ",Information Management Services,Large,Programme Expenditure
UK Statistics Family,Office for National Statistics,04/01/2022,Exp - Purchase Of Goods/Services - Contractors,2023 CENSUS DATA TRANSFORMATION,La International,218078," 9,436.70 ",Information Management Services,SME,Programme Expenditure
UK Statistics Family,Office for National Statistics,04/01/2022,Exp - Purchase Of Goods/Services - Contractors,Business Architecture,La International,218078," 2,870.64 ",Information Management Services,SME,Programme Expenditure
UK Statistics Family,Office for National Statistics,04/01/2022,Exp - Purchase Of Goods/Services - Contractors,Business Architecture,La International,218078," 3,588.30 ",Information Management Services,SME,Programme Expenditure
UK Statistics Family,Office for National Statistics,04/01/2022,Exp - Purchase Of Goods/Services - Contractors,Testing,La International,218078," 13,187.58 ",Information Management Services,SME,Programme Expenditure
UK Statistics Family,Office for National Statistics,04/01/2022,Exp - Purchase Of Goods/Services - Contractors,Testing,La International,218078," 4,281.18 ",Information Management Services,SME,Programme Expenditure
UK Statistics Family,Office for National Statistics,04/01/2022,Exp - Purchase Of Goods/Services - Contractors,Testing,La International,218078," 7,135.30 ",Information Management Services,SME,Programme Expenditure
UK Statistics Family,Office for National Statistics,04/01/2022,Exp - Purchase Of Goods/Services - Contractors,Digital Publishing,La International,218078," 14,373.60 ",Information Management Services,SME,Programme Expenditure
UK Statistics Family,Office for National Statistics,04/01/2022,Exp - Purchase Of Goods/Services - Contractors,STRATEGY SYNTHESIS AND CO-ORDINATION,La International,218078," 5,051.04 ",Information Management Services,SME,Programme Expenditure
UK Statistics Family,Office for National Statistics,04/01/2022,Exp - Purchase Of Goods/Services - Contractors,Data Architecture,La International,218078," 4,131.18 ",Information Management Services,SME,Programme Expenditure
UK Statistics Family,Office for National Statistics,04/01/2022,Exp - Purchase Of Goods/Services - Contractors,Data Architecture,La International,218078," 6,920.32 ",Information Management Services,SME,Programme Expenditure
UK Statistics Family,Office for National Statistics,04/01/2022,Exp - Purchase Of Goods/Services - Contractors,Data Architecture,La International,218078," 9,162.36 ",Information Management Services,SME,Programme Expenditure
UK Statistics Family,Office for National Statistics,04/01/2022,Exp - Purchase Of Goods/Services - Contractors,Data Architecture,La International,218078," 8,562.36 ",Information Management Services,SME,Programme Expenditure
UK Statistics Family,Office for National Statistics,04/01/2022,Exp - Purchase Of Goods/Services - Contractors,CLOUD ARCHITECTURE,La International,218078," 3,844.62 ",Information Management Services,SME,Programme Expenditure
UK Statistics Family,Office for National Statistics,04/01/2022,Exp - Purchase Of Goods/Services - Contractors,Tech Delivery Legacy Sp,La International,218078," 14,096.88 ",Information Management Services,SME,Programme Expenditure
UK Statistics Family,Office for National Statistics,04/01/2022,Exp - Purchase Of Goods/Services - Contractors,Tech Delivery Data As A Platform,La International,218078," 8,330.04 ",Information Management Services,SME,Programme Expenditure
UK Statistics Family,Office for National Statistics,04/01/2022,Exp - Purchase Of Goods/Services - Contractors,Tech Delivery Data As A Platform,La International,218078," 3,588.30 ",Information Management Services,SME,Programme Expenditure
UK Statistics Family,Office for National Statistics,04/01/2022,Exp - Purchase Of Goods/Services - Contractors,IT Applications,La International,218078," 21,529.22 ",Information Management Services,SME,Programme Expenditure
UK Statistics Family,Office for National Statistics,04/01/2022,Exp - Purchase Of Goods/Services - Contractors,IT Operations,La International,218078," 12,029.40 ",Information Management Services,SME,Programme Expenditure
UK Statistics Family,Office for National Statistics,04/01/2022,Exp - Short-Term Contract & Agency Staff - Full Cost,Office Of Chief Data And Information,La International,218078," 1,198.80 ",Information Management Services,SME,Programme Expenditure
UK Statistics Family,Office for National Statistics,04/01/2022,Exp - Purchase Of Goods/Services - Contractors,Policy Secretariat,Odgers Berndtson,218079," 25,500.00 ",Recruitment Services,SME,Programme Expenditure
UK Statistics Family,Office for National Statistics,04/01/2022,Print & Post,Social Survey Transformation Newport,APS Group,218082," 70,174.55 ",Print and Post Services,Large,Programme Expenditure
UK Statistics Family,Office for National Statistics,04/01/2022,Hosting,CDIO UNGP,Amazon Web Services Inc,218087," 61,709.46 ",Information Management Services,Large,Programme Expenditure
UK Statistics Family,Office for National Statistics,04/01/2022,Hosting,IT Operations,Amazon Web Services Inc,218087,"-2,146.25 ",Information Management Services,Large,Programme Expenditure
UK Statistics Family,Office for National Statistics,04/01/2022,Exp - Purchase Of Goods/Services - Contractors,Covid Infection Survey,Parity Resources Limited,218094," 4,192.56 ",Information Management Services,Large,Programme Expenditure
UK Statistics Family,Office for National Statistics,04/01/2022,Exp - Purchase Of Goods/Services - Contractors,Policy and Design,Parity Resources Limited,218094," 3,000.00 ",Information Management Services,Large,Programme Expenditure
UK Statistics Family,Office for National Statistics,04/01/2022,Exp - Purchase Of Goods/Services - Contractors,Security Advisory,Parity Resources Limited,218094," 11,278.08 ",Information Management Services,Large,Programme Expenditure
UK Statistics Family,Office for National Statistics,04/01/2022,Exp - Purchase Of Goods/Services - Contractors,Tech Delivery Legacy Sp,Parity Resources Limited,218094," 9,201.00 ",Information Management Services,Large,Programme Expenditure
UK Statistics Family,Office for National Statistics,04/01/2022,Exp - Purchase Of Goods/Services - Contractors,IT Operations,Parity Resources Limited,218094," 3,550.50 ",Information Management Services,Large,Programme Expenditure
UK Statistics Family,Office for National Statistics,04/01/2022,Exp - Purchase Of Goods/Services - Contractors,Data Science Campus,Parity Resources Limited,218094," 12,248.86 ",Information Management Services,Large,Programme Expenditure
UK Statistics Family,Office for National Statistics,05/01/2022,Surveys,Policy Secretariat,Natcen Social Research,218286," 80,306.40 ",Statistical Services,Large,Programme Expenditure
UK Statistics Family,Office for National Statistics,05/01/2022,Exp - Purchase Of Goods/Services - Contractors,Testing,Certes Computing Ltd,218289," 11,554.46 ",Information Management Services,SME,Programme Expenditure
UK Statistics Family,Office for National Statistics,05/01/2022,Exp - Purchase Of Goods/Services - Contractors,Security And Information Management Saim,Certes Computing Ltd,218289," 1,665.31 ",Information Management Services,SME,Programme Expenditure
UK Statistics Family,Office for National Statistics,05/01/2022,Exp - Purchase Of Goods/Services - Contractors,Security Advisory,Certes Computing Ltd,218289," 20,816.40 ",Information Management Services,SME,Programme Expenditure
UK Statistics Family,Office for National Statistics,05/01/2022,Exp - Purchase Of Goods/Services - Contractors,Security Advisory,Certes Computing Ltd,218289," 10,407.75 ",Information Management Services,SME,Programme Expenditure
UK Statistics Family,Office for National Statistics,05/01/2022,Exp - Purchase Of Goods/Services - Contractors,Digital Delivery,Certes Computing Ltd,218289," 8,326.56 ",Information Management Services,SME,Programme Expenditure
UK Statistics Family,Office for National Statistics,05/01/2022,Exp - Purchase Of Goods/Services - Contractors,Business Architecture,La International,218290," 2,870.64 ",Information Management Services,SME,Programme Expenditure
UK Statistics Family,Office for National Statistics,05/01/2022,Exp - Purchase Of Goods/Services - Contractors,Testing,La International,218290," 3,593.40 ",Information Management Services,SME,Programme Expenditure
UK Statistics Family,Office for National Statistics,05/01/2022,Exp - Purchase Of Goods/Services - Contractors,Digital Publishing,La International,218290," 19,642.56 ",Information Management Services,SME,Programme Expenditure
UK Statistics Family,Office for National Statistics,05/01/2022,Exp - Purchase Of Goods/Services - Contractors,IT Applications,La International,218290," 4,101.18 ",Information Management Services,SME,Programme Expenditure
UK Statistics Family,Office for National Statistics,05/01/2022,Exp - Purchase Of Goods/Services - Contractors,Testing,Malikshaw Interim & Executive,218292," 12,852.00 ",Information Management Services,SME,Programme Expenditure
UK Statistics Family,Office for National Statistics,05/01/2022,Exp - Short-Term Contract & Agency Staff - Full Cost,Data Architecture,Malikshaw Interim & Executive,218292," 11,825.56 ",Information Management Services,SME,Programme Expenditure
UK Statistics Family,Office for National Statistics,05/01/2022,Exp - Purchase Of Goods/Services - Contractors,IT Operations,Malikshaw Interim & Executive,218292," 7,219.55 ",Information Management Services,SME,Programme Expenditure
UK Statistics Family,Office for National Statistics,05/01/2022,Exp - Purchase Of Goods/Services - Contractors,Digital Delivery,Malikshaw Interim & Executive,218292," 1,555.20 ",Information Management Services,SME,Programme Expenditure
UK Statistics Family,Office for National Statistics,05/01/2022,Exp - Purchase Of Goods/Services - IT Contractual Services,CDIO UNGP,Amazon Web Services Inc,218296," 108,511.53 ",Information Management Services,Large,Programme Expenditure
UK Statistics Family,Office for National Statistics,05/01/2022,EXP - PURCHASE OF GOODS/SERVICES -  NON IT CONTRACTUAL PAYMENTS,Census CCS Data Collection,Adecco UK Limited,218304," 190,414.80 ",Census People Services Contractual,SME,Programme Expenditure
UK Statistics Family,Office for National Statistics,06/01/2022,Exp - Purchase Of Goods/Services - Contractors,Business Architecture,La International,218314," 3,580.04 ",Information Management Services,SME,Programme Expenditure
UK Statistics Family,Office for National Statistics,06/01/2022,Exp - Purchase Of Goods/Services - Contractors,Testing,La International,218314," 15,894.74 ",Information Management Services,SME,Programme Expenditure
UK Statistics Family,Office for National Statistics,06/01/2022,Exp - Purchase Of Goods/Services - Contractors,Testing,La International,218314," 4,281.18 ",Information Management Services,SME,Programme Expenditure
UK Statistics Family,Office for National Statistics,06/01/2022,Exp - Purchase Of Goods/Services - Contractors,Testing,La International,218314," 7,135.30 ",Information Management Services,SME,Programme Expenditure
UK Statistics Family,Office for National Statistics,06/01/2022,Exp - Purchase Of Goods/Services - Contractors,Tech Delivery Legacy Sp,La International,218314," 9,162.98 ",Information Management Services,SME,Programme Expenditure
UK Statistics Family,Office for National Statistics,06/01/2022,Exp - Purchase Of Goods/Services - Contractors,IT Applications,La International,218314," 4,101.18 ",Information Management Services,SME,Programme Expenditure
UK Statistics Family,Office for National Statistics,06/01/2022,Exp - Short-Term Contract & Agency Staff - Full Cost,Office Of Chief Data And Information,La International,218314," 1,166.40 ",Information Management Services,SME,Programme Expenditure
UK Statistics Family,Office for National Statistics,06/01/2022,Exp - Purchase Of Goods/Services - Contractors,Programme Delivery,Malikshaw Interim & Executive,218318," 13,518.61 ",Information Management Services,SME,Programme Expenditure
UK Statistics Family,Office for National Statistics,06/01/2022,Exp - Short-Term Contract & Agency Staff - Full Cost,Covid Infection Survey,Malikshaw Interim & Executive,218318," 2,793.03 ",Information Management Services,SME,Programme Expenditure
UK Statistics Family,Office for National Statistics,06/01/2022,Exp - Short-Term Contract & Agency Staff - Full Cost,Strategy And Engagement,Malikshaw Interim & Executive,218318," 3,718.14 ",Information Management Services,SME,Programme Expenditure
UK Statistics Family,Office for National Statistics,06/01/2022,Exp - Purchase Of Goods/Services - Contractors,CLOUD ARCHITECTURE,Malikshaw Interim & Executive,218318," 9,360.00 ",Information Management Services,SME,Programme Expenditure
UK Statistics Family,Office for National Statistics,06/01/2022,Exp - Purchase Of Goods/Services - Contractors,Digital Delivery,Malikshaw Interim & Executive,218318," 11,664.00 ",Information Management Services,SME,Programme Expenditure
UK Statistics Family,Office for National Statistics,06/01/2022,Exp - Purchase Of Goods/Services - Contractors,Data Science Campus,Malikshaw Interim & Executive,218318," 16,598.40 ",Information Management Services,SME,Programme Expenditure
UK Statistics Family,Office for National Statistics,06/01/2022,Exp - Purchase Of Goods/Services - Contractors,Data As A Service,Malikshaw Interim & Executive,218318," 18,672.00 ",Information Management Services,SME,Programme Expenditure
UK Statistics Family,Office for National Statistics,06/01/2022,Surveys,Crime Statistics,Kantar UK Ltd,218322," 699,440.70 ",Statistical Services,Large,Programme Expenditure
UK Statistics Family,Office for National Statistics,06/01/2022,Hosting,CLOUD ARCHITECTURE,Amazon Web Services Inc,218323," 240,435.02 ",Information Management Services,Large,Programme Expenditure
UK Statistics Family,Office for National Statistics,06/01/2022,Hosting,IT Operations,Amazon Web Services Inc,218323," 206,106.90 ",Information Management Services,Large,Programme Expenditure
UK Statistics Family,Office for National Statistics,06/01/2022,Exp - Purchase Of Goods/Services - Incentive Payments,Social Survey Transformation Newport,Sodexo Motivation Solutions U.K. ltd,218324," 84,705.63 ",Survey Response Incentive Vouchers,Large,Programme Expenditure
UK Statistics Family,Office for National Statistics,06/01/2022,Exp - Purchase Of Goods/Services - Incentive Payments,Survey Management,Sodexo Motivation Solutions U.K. ltd,218324," 18,741.23 ",Survey Response Incentive Vouchers,Large,Programme Expenditure
UK Statistics Family,Office for National Statistics,06/01/2022,Exp - Purchase Of Goods/Services - Incentive Payments,Survey Management,Sodexo Motivation Solutions U.K. ltd,218324," 5,645.07 ",Survey Response Incentive Vouchers,Large,Programme Expenditure
UK Statistics Family,Office for National Statistics,06/01/2022,Exp - Purchase Of Goods/Services - Incentive Payments,Survey Management,Sodexo Motivation Solutions U.K. ltd,218324," 4,204.20 ",Survey Response Incentive Vouchers,Large,Programme Expenditure
UK Statistics Family,Office for National Statistics,06/01/2022,Exp - Purchase Of Goods/Services - Incentive Payments,Survey Management,Sodexo Motivation Solutions U.K. ltd,218324," 1,766.55 ",Survey Response Incentive Vouchers,Large,Programme Expenditure
UK Statistics Family,Office for National Statistics,06/01/2022,Exp - Purchase Of Goods/Services - Incentive Payments,Survey Management,Sodexo Motivation Solutions U.K. ltd,218324," 58,439.28 ",Survey Response Incentive Vouchers,Large,Programme Expenditure
UK Statistics Family,Office for National Statistics,07/01/2022,Postage,Survey Processing Centre,DHL Parcel Ltd,218434," 32,315.84 ",Postage Services,Large,Programme Expenditure
UK Statistics Family,Office for National Statistics,07/01/2022,Exp - Short-Term Contract & Agency Staff - Full Cost,2023 CENSUS DATA TRANSFORMATION,Talent International,218439," 4,193.14 ",Information Management Services,SME,Programme Expenditure
UK Statistics Family,Office for National Statistics,07/01/2022,Exp - Purchase Of Goods/Services - Contractors,Business Architecture,Talent International,218439," 14,399.76 ",Information Management Services,SME,Programme Expenditure
UK Statistics Family,Office for National Statistics,07/01/2022,Exp - Purchase Of Goods/Services - Contractors,Business Architecture,Talent International,218439," 3,780.00 ",Information Management Services,SME,Programme Expenditure
UK Statistics Family,Office for National Statistics,07/01/2022,Exp - Purchase Of Goods/Services - Contractors,Consultancy Management,Talent International,218439," 17,100.00 ",Information Management Services,SME,Programme Expenditure
UK Statistics Family,Office for National Statistics,07/01/2022,Exp - Short-Term Contract & Agency Staff - Full Cost,Strategy And Engagement,Talent International,218439," 7,781.01 ",Information Management Services,SME,Programme Expenditure
UK Statistics Family,Office for National Statistics,07/01/2022,Exp - Short-Term Contract & Agency Staff - Full Cost,Strategy And Engagement,Talent International,218439," 4,755.06 ",Information Management Services,SME,Programme Expenditure
UK Statistics Family,Office for National Statistics,07/01/2022,Exp - Purchase Of Goods And Services Consultants,Business Architecture Transformation And Statistical Strategy,Talent International,218439," 18,720.00 ",Information Management Services,SME,Programme Expenditure
UK Statistics Family,Office for National Statistics,07/01/2022,Exp - Short-Term Contract & Agency Staff - Full Cost,Data Architecture,Talent International,218439," 2,256.41 ",Information Management Services,SME,Programme Expenditure
UK Statistics Family,Office for National Statistics,07/01/2022,Exp - Purchase Of Goods/Services - Contractors,CLOUD ARCHITECTURE,Talent International,218439," 16,380.00 ",Information Management Services,SME,Programme Expenditure
UK Statistics Family,Office for National Statistics,07/01/2022,Exp - Purchase Of Goods/Services - Contractors,CLOUD ARCHITECTURE,Talent International,218439," 14,399.76 ",Information Management Services,SME,Programme Expenditure
UK Statistics Family,Office for National Statistics,07/01/2022,Exp - Purchase Of Goods/Services - Contractors,CLOUD ARCHITECTURE,Talent International,218439," 11,700.00 ",Information Management Services,SME,Programme Expenditure
UK Statistics Family,Office for National Statistics,07/01/2022,Exp - Purchase Of Goods/Services - Contractors,Tech Delivery Next Gen IT And Infrastructure,Talent International,218439," 14,399.76 ",Information Management Services,SME,Programme Expenditure
UK Statistics Family,Office for National Statistics,07/01/2022,Exp - Purchase Of Goods/Services - Contractors,IT Applications,Talent International,218439," 16,380.00 ",Information Management Services,SME,Programme Expenditure
UK Statistics Family,Office for National Statistics,07/01/2022,Exp - Purchase Of Goods/Services - Contractors,IT Operations,Talent International,218439," 33,120.00 ",Information Management Services,SME,Programme Expenditure
UK Statistics Family,Office for National Statistics,07/01/2022,Exp - Purchase Of Goods/Services - Contractors,Data Science Campus,Talent International,218439," 19,320.00 ",Information Management Services,SME,Programme Expenditure
UK Statistics Family,Office for National Statistics,07/01/2022,Exp - Purchase Of Goods/Services - Contractors,PPP Operations,Talent International,218439," 18,000.00 ",Information Management Services,SME,Programme Expenditure
UK Statistics Family,Office for National Statistics,07/01/2022,Exp - Short-Term Contract & Agency Staff - Full Cost,Social Survey Transformation Titchfield,Talent International,218439," 4,755.24 ",Information Management Services,SME,Programme Expenditure
UK Statistics Family,Office for National Statistics,07/01/2022,Exp - Purchase Of Goods/Services - Contractors,Business Architecture,SmartSourcing Ltd,218441," 14,384.64 ",Information Management Services,SME,Programme Expenditure
UK Statistics Family,Office for National Statistics,07/01/2022,Exp - Purchase Of Goods/Services - Contractors,Business Architecture,SmartSourcing Ltd,218441," 7,192.32 ",Information Management Services,SME,Programme Expenditure
UK Statistics Family,Office for National Statistics,07/01/2022,Exp - Short-Term Contract & Agency Staff - Full Cost,Business Architecture Transformation And Statistical Strategy,SmartSourcing Ltd,218441," 13,663.13 ",Information Management Services,SME,Programme Expenditure
UK Statistics Family,Office for National Statistics,07/01/2022,Exp - Short-Term Contract & Agency Staff - Full Cost,Learning And Capability,SmartSourcing Ltd,218441," 5,587.20 ",Information Management Services,SME,Programme Expenditure
UK Statistics Family,Office for National Statistics,07/01/2022,Exp - Purchase Of Goods/Services - Contractors,CDIO UNGP,SmartSourcing Ltd,218441," 9,740.02 ",Information Management Services,SME,Programme Expenditure
UK Statistics Family,Office for National Statistics,07/01/2022,Exp - Purchase Of Goods/Services - Contractors,IT Operations,SmartSourcing Ltd,218441," 12,226.94 ",Information Management Services,SME,Programme Expenditure
UK Statistics Family,Office for National Statistics,07/01/2022,Exp - Purchase Of Goods/Services - Contractors,Data Science Campus,SmartSourcing Ltd,218441," 18,612.34 ",Information Management Services,SME,Programme Expenditure
UK Statistics Family,Office for National Statistics,07/01/2022,Exp - Purchase Of Goods/Services - Contractors,Data As A Service,SmartSourcing Ltd,218441," 9,350.02 ",Information Management Services,SME,Programme Expenditure
UK Statistics Family,Office for National Statistics,07/01/2022,"ICT Outsourcing, Maintenance And Support",Security Operations,Scc,218448," 36,988.00 ",Information Management Services,Large,Programme Expenditure
UK Statistics Family,Office for National Statistics,07/01/2022,Exp - Purchase Of Goods/Services - Contractors,Testing,Certes Computing Ltd,218449," 13,143.02 ",Information Management Services,SME,Programme Expenditure
UK Statistics Family,Office for National Statistics,07/01/2022,Exp - Purchase Of Goods/Services - Contractors,Security Advisory,Certes Computing Ltd,218449," 31,833.06 ",Information Management Services,SME,Programme Expenditure
UK Statistics Family,Office for National Statistics,07/01/2022,Exp - Purchase Of Goods/Services - Contractors,Data Architecture,Certes Computing Ltd,218449," 8,820.36 ",Information Management Services,SME,Programme Expenditure
UK Statistics Family,Office for National Statistics,07/01/2022,EXP - PURCHASE OF GOODS/SERVICES -  NON IT CONTRACTUAL PAYMENTS,Data Collection Service,Serco Ltd,218454," 908,110.48 ",Census Contact Centre,Large,Programme Expenditure
UK Statistics Family,Office for National Statistics,07/01/2022,Surveys,Strategy And Engagement,Kantar UK Ltd,218458," 180,184.25 ",Statistical Services,Large,Programme Expenditure
UK Statistics Family,Office for National Statistics,07/01/2022,Surveys,Prices Division,Kantar UK Ltd,218458," 188,180.83 ",Statistical Services,Large,Programme Expenditure
UK Statistics Family,Office for National Statistics,10/01/2022,FM Contract Payments,Vinci Payments,Vinci Construction UK Limited,218466," 79,862.43 ",Facilities Mangement Services,Large,Programme Expenditure
UK Statistics Family,Office for National Statistics,10/01/2022,Exp - Purchase Of Goods/Services - Contractors,Census & Soc Methodology Dd,Certes Computing Ltd,218475," 1,439.78 ",Information Management Services,SME,Programme Expenditure
UK Statistics Family,Office for National Statistics,10/01/2022,Exp - Purchase Of Goods/Services - Contractors,CLOUD ARCHITECTURE,Certes Computing Ltd,218475," 11,529.00 ",Information Management Services,SME,Programme Expenditure
UK Statistics Family,Office for National Statistics,10/01/2022,Exp - Purchase Of Goods/Services - Contractors,Strategy And Architecture,Certes Computing Ltd,218475," 16,200.00 ",Information Management Services,SME,Programme Expenditure
UK Statistics Family,Office for National Statistics,10/01/2022,Exp - Purchase Of Goods/Services - Contractors,IT Applications,Certes Computing Ltd,218475," 15,118.49 ",Information Management Services,SME,Programme Expenditure
UK Statistics Family,Office for National Statistics,10/01/2022,Exp - Purchase Of Goods/Services - Contractors,Digital Delivery,Certes Computing Ltd,218475," 18,574.58 ",Information Management Services,SME,Programme Expenditure
UK Statistics Family,Office for National Statistics,10/01/2022,Exp - Purchase Of Goods/Services - Contractors,Digital Publishing,La International,218476," 26,284.67 ",Information Management Services,SME,Programme Expenditure
UK Statistics Family,Office for National Statistics,10/01/2022,Exp - Purchase Of Goods/Services - Contractors,Digital Publishing,La International,218476," 1,832.47 ",Information Management Services,SME,Programme Expenditure
UK Statistics Family,Office for National Statistics,10/01/2022,IT (Owned) At Cost - Additions,IT Operations,Computacenter (Uk) Limited,218477," 99,888.04 ",Computers and Peripherals,Large,Programme Expenditure
UK Statistics Family,Office for National Statistics,10/01/2022,"ICT Outsourcing, Maintenance And Support",IT Operations,Computacenter (Uk) Limited,218477," 6,662.09 ",Computers and Peripherals,Large,Programme Expenditure
UK Statistics Family,Office for National Statistics,10/01/2022,Specialist User Software And Hardware,IT Operations,Computacenter (Uk) Limited,218477, 454.90 ,Computers and Peripherals,Large,Programme Expenditure
UK Statistics Family,Office for National Statistics,10/01/2022,Exp - Short-Term Contract & Agency Staff - Full Cost,Recruitment ,Malikshaw Interim & Executive,218481," 2,509.49 ",Information Management Services,SME,Programme Expenditure
UK Statistics Family,Office for National Statistics,10/01/2022,Exp - Purchase Of Goods/Services - Contractors,INTEGRATED DATA STRATEGY AND DELIVERY,Malikshaw Interim & Executive,218481," 12,376.37 ",Information Management Services,SME,Programme Expenditure
UK Statistics Family,Office for National Statistics,10/01/2022,Exp - Purchase Of Goods/Services - Contractors,ANALYTICAL ENGAGEMENT AND IMPACT,Malikshaw Interim & Executive,218481," 10,080.00 ",Information Management Services,SME,Programme Expenditure
UK Statistics Family,Office for National Statistics,10/01/2022,Exp - Purchase Of Goods/Services - Contractors,Digital Delivery,Malikshaw Interim & Executive,218481," 16,329.60 ",Information Management Services,SME,Programme Expenditure
UK Statistics Family,Office for National Statistics,10/01/2022,Software Licences At Cost - Additions,CLOUD ARCHITECTURE,Amazon Web Services Inc,218484," 400,832.38 ",Information Management Services,Large,Programme Expenditure
UK Statistics Family,Office for National Statistics,10/01/2022,Hosting,CDIO UNGP,Amazon Web Services Inc,218484," 12,029.29 ",Information Management Services,Large,Programme Expenditure
UK Statistics Family,Office for National Statistics,10/01/2022,Hosting,IT Operations,Amazon Web Services Inc,218484,"-25,685.12 ",Information Management Services,Large,Programme Expenditure
UK Statistics Family,Office for National Statistics,10/01/2022,Exp - Purchase Of Goods And Services Consultants,Digital Publishing,Methods Business & Digital Technology Ltd,218485," 204,370.51 ",Information Management Services,Large,Programme Expenditure
UK Statistics Family,Office for National Statistics,10/01/2022,Exp - Purchase Of Goods/Services - Contractors,INTEGRATED DATA STRATEGY AND DELIVERY,Talent International,218486," 11,730.00 ",Information Management Services,SME,Programme Expenditure
UK Statistics Family,Office for National Statistics,10/01/2022,Exp - Purchase Of Goods/Services - IT Contractual Services,IT Operations,Talent International,218486," 14,399.76 ",Information Management Services,SME,Programme Expenditure
UK Statistics Family,Office for National Statistics,10/01/2022,Exp - Purchase Of Goods/Services - Incentive Payments,Covid Infection Survey,Sodexo Motivation Solutions U.K. ltd,218487," 32,295.67 ",Survey Response Incentive Vouchers,Large,Programme Expenditure
UK Statistics Family,Office for National Statistics,10/01/2022,Exp - Short-Term Contract & Agency Staff - Full Cost,INTEGRATED DATA STRATEGY AND DELIVERY,SmartSourcing Ltd,218488," 7,092.00 ",Information Management Services,SME,Programme Expenditure
UK Statistics Family,Office for National Statistics,10/01/2022,Exp - Purchase Of Goods/Services - Contractors,IT Operations,SmartSourcing Ltd,218488," 28,786.99 ",Information Management Services,SME,Programme Expenditure
UK Statistics Family,Office for National Statistics,10/01/2022,Exp - Short-Term Contract & Agency Staff - Full Cost,Business Architecture Transformation And Statistical Strategy,Parity Resources Limited,218489," 2,060.16 ",Information Management Services,Large,Programme Expenditure
UK Statistics Family,Office for National Statistics,10/01/2022,Exp - Short-Term Contract & Agency Staff - Full Cost,Recruitment ,Parity Resources Limited,218489," 1,465.20 ",Information Management Services,Large,Programme Expenditure
UK Statistics Family,Office for National Statistics,10/01/2022,Exp - Purchase Of Goods/Services - Contractors,IT Operations,Parity Resources Limited,218489," 65,328.00 ",Information Management Services,Large,Programme Expenditure
UK Statistics Family,Office for National Statistics,10/01/2022,Other Goods And Services,Security Advisory,Cabinet Office,218490," 39,605.58 ",Security Vetting Services,Large,Programme Expenditure
UK Statistics Family,Office for National Statistics,11/01/2022,Exp - Purchase Of Goods/Services - Contractors,Strategy And Architecture,Certes Computing Ltd,218622," 12,489.30 ",Information Management Services,SME,Programme Expenditure
UK Statistics Family,Office for National Statistics,11/01/2022,Exp - Purchase Of Goods/Services - Contractors,Strategy And Architecture,Certes Computing Ltd,218622," 14,219.10 ",Information Management Services,SME,Programme Expenditure
UK Statistics Family,Office for National Statistics,11/01/2022,Exp - Purchase Of Goods/Services - Contractors,Tech Delivery Legacy Sp,Certes Computing Ltd,218622," 12,778.03 ",Information Management Services,SME,Programme Expenditure
UK Statistics Family,Office for National Statistics,11/01/2022,Exp - Purchase Of Goods/Services - Contractors,Testing,La International,218623," 2,598.72 ",Information Management Services,SME,Programme Expenditure
UK Statistics Family,Office for National Statistics,11/01/2022,Exp - Purchase Of Goods/Services - Contractors,Testing,La International,218623," 2,290.59 ",Information Management Services,SME,Programme Expenditure
UK Statistics Family,Office for National Statistics,11/01/2022,Exp - Purchase Of Goods/Services - Contractors,Digital Publishing,La International,218623," 9,611.64 ",Information Management Services,SME,Programme Expenditure
UK Statistics Family,Office for National Statistics,11/01/2022,Exp - Purchase Of Goods/Services - Contractors,ANALYTICAL ENGAGEMENT AND IMPACT,La International,218623," 7,590.00 ",Information Management Services,SME,Programme Expenditure
UK Statistics Family,Office for National Statistics,11/01/2022,Exp - Purchase Of Goods/Services - Contractors,Data Architecture,La International,218623," 4,281.18 ",Information Management Services,SME,Programme Expenditure
UK Statistics Family,Office for National Statistics,11/01/2022,Exp - Purchase Of Goods/Services - Contractors,CLOUD ARCHITECTURE,La International,218623," 4,165.02 ",Information Management Services,SME,Programme Expenditure
UK Statistics Family,Office for National Statistics,11/01/2022,Exp - Purchase Of Goods/Services - Contractors,Tech Delivery Data As A Platform,La International,218623," 4,165.02 ",Information Management Services,SME,Programme Expenditure
UK Statistics Family,Office for National Statistics,11/01/2022,Exp - Purchase Of Goods/Services - Contractors,IT Applications,La International,218623," 6,561.89 ",Information Management Services,SME,Programme Expenditure
UK Statistics Family,Office for National Statistics,11/01/2022,Exp - Purchase Of Goods/Services - Contractors,Data Architecture,Parity Resources Limited,218633," 28,863.00 ",Information Management Services,Large,Programme Expenditure
UK Statistics Family,Office for National Statistics,11/01/2022,Exp - Purchase Of Goods/Services - Contractors,CLOUD ARCHITECTURE,Parity Resources Limited,218633," 3,430.50 ",Information Management Services,Large,Programme Expenditure
UK Statistics Family,Office for National Statistics,11/01/2022,Exp - Purchase Of Goods/Services - Contractors,Strategy And Architecture,Parity Resources Limited,218633," 4,210.50 ",Information Management Services,Large,Programme Expenditure
UK Statistics Family,Office for National Statistics,11/01/2022,Exp - Purchase Of Goods/Services - Contractors,IT Operations,Malikshaw Interim & Executive,218637," 11,699.84 ",Information Management Services,SME,Programme Expenditure
UK Statistics Family,Office for National Statistics,11/01/2022,Exp - Purchase Of Goods/Services - Contractors,IT Operations,Malikshaw Interim & Executive,218637," 14,439.10 ",Information Management Services,SME,Programme Expenditure
UK Statistics Family,Office for National Statistics,11/01/2022,Exp - Purchase Of Goods/Services - Contractors,Data Science Campus,Malikshaw Interim & Executive,218637," 12,484.80 ",Information Management Services,SME,Programme Expenditure
UK Statistics Family,Office for National Statistics,11/01/2022,Exp - Purchase Of Goods/Services - Contractors,Data As A Service,Malikshaw Interim & Executive,218637," 16,848.84 ",Information Management Services,SME,Programme Expenditure
UK Statistics Family,Office for National Statistics,11/01/2022,Exp - Short-Term Contract & Agency Staff - Full Cost,Strategy And Engagement,Talent International,218639," 3,761.99 ",Information Management Services,SME,Programme Expenditure
UK Statistics Family,Office for National Statistics,11/01/2022,Exp - Short-Term Contract & Agency Staff - Full Cost,STRATEGY SYNTHESIS AND CO-ORDINATION,Talent International,218639," 5,706.29 ",Information Management Services,SME,Programme Expenditure
UK Statistics Family,Office for National Statistics,11/01/2022,Exp - Short-Term Contract & Agency Staff - Full Cost,Data Architecture,Talent International,218639," 2,097.85 ",Information Management Services,SME,Programme Expenditure
UK Statistics Family,Office for National Statistics,11/01/2022,Exp - Purchase Of Goods/Services - Contractors,Tech Delivery Legacy Sp,Talent International,218639," 15,600.00 ",Information Management Services,SME,Programme Expenditure
UK Statistics Family,Office for National Statistics,11/01/2022,Exp - Purchase Of Goods/Services - Contractors,Digital Delivery,Talent International,218639," 9,676.80 ",Information Management Services,SME,Programme Expenditure
UK Statistics Family,Office for National Statistics,11/01/2022,Exp - Purchase Of Goods And Services Consultants,2023 CENSUS DATA TRANSFORMATION,The Sensible Code Company,218641," 117,823.20 ",Consultancy,SME,Programme Expenditure
UK Statistics Family,Office for National Statistics,11/01/2022,Exp - Purchase Of Goods/Services - Contractors,Business Architecture,LA FOSSE ASSOCIATES LIMITED,218642," 46,620.00 ",Information Management Services,Large,Programme Expenditure
UK Statistics Family,Office for National Statistics,11/01/2022,Exp - Purchase Of Goods/Services - Contractors,Business Architecture,LA FOSSE ASSOCIATES LIMITED,218642," 18,078.00 ",Information Management Services,Large,Programme Expenditure
UK Statistics Family,Office for National Statistics,11/01/2022,Exp - Purchase Of Goods/Services - Contractors,Business Architecture,LA FOSSE ASSOCIATES LIMITED,218642," 14,820.00 ",Information Management Services,Large,Programme Expenditure
UK Statistics Family,Office for National Statistics,11/01/2022,Exp - Purchase Of Goods/Services - Contractors,Testing,LA FOSSE ASSOCIATES LIMITED,218642," 10,500.00 ",Information Management Services,Large,Programme Expenditure
UK Statistics Family,Office for National Statistics,11/01/2022,Exp - Purchase Of Goods/Services - Contractors,Consultancy Management,LA FOSSE ASSOCIATES LIMITED,218642," 3,150.00 ",Information Management Services,Large,Programme Expenditure
UK Statistics Family,Office for National Statistics,11/01/2022,Exp - Purchase Of Goods/Services - Contractors,Consultancy Management,LA FOSSE ASSOCIATES LIMITED,218642," 11,520.00 ",Information Management Services,Large,Programme Expenditure
UK Statistics Family,Office for National Statistics,11/01/2022,Exp - Purchase Of Goods/Services - Contractors,WIDER SURVEILLANCE STUDIES,LA FOSSE ASSOCIATES LIMITED,218642," 10,200.00 ",Information Management Services,Large,Programme Expenditure
UK Statistics Family,Office for National Statistics,11/01/2022,Exp - Purchase Of Goods/Services - Contractors,Digital Publishing,LA FOSSE ASSOCIATES LIMITED,218642," 12,960.00 ",Information Management Services,Large,Programme Expenditure
UK Statistics Family,Office for National Statistics,11/01/2022,Exp - Purchase Of Goods/Services - Contractors,BUSINESS STRATEGY PERFORMANCE AND PMO,LA FOSSE ASSOCIATES LIMITED,218642," 30,420.00 ",Information Management Services,Large,Programme Expenditure
UK Statistics Family,Office for National Statistics,11/01/2022,Exp - Purchase Of Goods/Services - Contractors,CLOUD ARCHITECTURE,LA FOSSE ASSOCIATES LIMITED,218642," 10,980.00 ",Information Management Services,Large,Programme Expenditure
UK Statistics Family,Office for National Statistics,11/01/2022,Exp - Purchase Of Goods/Services - Contractors,Strategy And Architecture,LA FOSSE ASSOCIATES LIMITED,218642," 18,900.00 ",Information Management Services,Large,Programme Expenditure
UK Statistics Family,Office for National Statistics,11/01/2022,Exp - Purchase Of Goods/Services - Contractors,Tech Delivery Legacy Sp,LA FOSSE ASSOCIATES LIMITED,218642," 13,500.00 ",Information Management Services,Large,Programme Expenditure
UK Statistics Family,Office for National Statistics,11/01/2022,Exp - Purchase Of Goods/Services - Contractors,Digital Delivery,LA FOSSE ASSOCIATES LIMITED,218642," 15,840.00 ",Information Management Services,Large,Programme Expenditure
UK Statistics Family,Office for National Statistics,11/01/2022,Exp - Purchase Of Goods/Services - Contractors,Data As A Service,LA FOSSE ASSOCIATES LIMITED,218642," 18,000.00 ",Information Management Services,Large,Programme Expenditure
UK Statistics Family,Office for National Statistics,12/01/2022,Exp - Purchase Of Goods/Services - Contractors,Operations,Certes Computing Ltd,218793," 15,179.86 ",Information Management Services,SME,Programme Expenditure
UK Statistics Family,Office for National Statistics,12/01/2022,Exp - Purchase Of Goods/Services - Contractors,IT Operations,Certes Computing Ltd,218793," 15,390.00 ",Information Management Services,SME,Programme Expenditure
UK Statistics Family,Office for National Statistics,12/01/2022,Exp - Purchase Of Goods/Services - Contractors,Business Architecture,La International,218794," 2,114.53 ",Information Management Services,SME,Programme Expenditure
UK Statistics Family,Office for National Statistics,12/01/2022,Exp - Purchase Of Goods/Services - Contractors,Digital Publishing,La International,218794," 14,073.60 ",Information Management Services,SME,Programme Expenditure
UK Statistics Family,Office for National Statistics,12/01/2022,Exp - Purchase Of Goods/Services - Contractors,Tech Delivery Legacy Sp,La International,218794," 36,282.42 ",Information Management Services,SME,Programme Expenditure
UK Statistics Family,Office for National Statistics,12/01/2022,Specialist User Software And Hardware,Security Operations,Computacenter (Uk) Limited,218797," 120,000.00 ",Software Licenses,Large,Programme Expenditure
UK Statistics Family,Office for National Statistics,12/01/2022,Specialist User Software And Hardware,Security Operations,Computacenter (Uk) Limited,218797," 31,683.13 ",Software Licenses,Large,Programme Expenditure
UK Statistics Family,Office for National Statistics,12/01/2022,Exp - Short-Term Contract & Agency Staff - Full Cost,International Trade And Transactions,Malikshaw Interim & Executive,218801," 4,089.53 ",Information Management Services,SME,Programme Expenditure
UK Statistics Family,Office for National Statistics,12/01/2022,Exp - Short-Term Contract & Agency Staff - Full Cost,Data Architecture,Malikshaw Interim & Executive,218801," 2,133.22 ",Information Management Services,SME,Programme Expenditure
UK Statistics Family,Office for National Statistics,12/01/2022,Exp - Purchase Of Goods/Services - Contractors,IT Operations,Malikshaw Interim & Executive,218801," 19,605.60 ",Information Management Services,SME,Programme Expenditure
UK Statistics Family,Office for National Statistics,12/01/2022,Exp - Purchase Of Goods/Services - Contractors,IT Operations,Malikshaw Interim & Executive,218801," 2,620.80 ",Information Management Services,SME,Programme Expenditure
UK Statistics Family,Office for National Statistics,12/01/2022,Exp - Purchase Of Goods/Services - IT Contractual Services,CLOUD ARCHITECTURE,CTS (Cloud Technology Solutions Ltd),218802," 86,823.00 ",DST Infrastructure Preparation,Large,Programme Expenditure
UK Statistics Family,Office for National Statistics,12/01/2022,"ICT Outsourcing, Maintenance And Support",IT Operations,Bloom Procurement Services Ltd,218806," 44,056.39 ",Consultancy,Large,Programme Expenditure
UK Statistics Family,Office for National Statistics,12/01/2022,Training & Development,Learning And Capability,Adapt Freelancer Limited,218809," 30,000.00 ",Training and Educational Services,SME,Programme Expenditure
UK Statistics Family,Office for National Statistics,12/01/2022,Exp - Purchase Of Goods/Services - Contractors,Business Architecture,Parity Resources Limited,218811," 2,520.00 ",Information Management Services,Large,Programme Expenditure
UK Statistics Family,Office for National Statistics,12/01/2022,Exp - Purchase Of Goods/Services - Contractors,Testing,Parity Resources Limited,218811," 9,360.00 ",Information Management Services,Large,Programme Expenditure
UK Statistics Family,Office for National Statistics,12/01/2022,Exp - Purchase Of Goods/Services - Contractors,Policy and Design,Parity Resources Limited,218811," 1,800.00 ",Information Management Services,Large,Programme Expenditure
UK Statistics Family,Office for National Statistics,12/01/2022,Exp - Purchase Of Goods/Services - Contractors,Analysis Microdata And Engagement,Parity Resources Limited,218811," 1,132.37 ",Information Management Services,Large,Programme Expenditure
UK Statistics Family,Office for National Statistics,12/01/2022,Exp - Short-Term Contract & Agency Staff - Full Cost,Business Architecture Transformation And Statistical Strategy,Parity Resources Limited,218811, 668.16 ,Information Management Services,Large,Programme Expenditure
UK Statistics Family,Office for National Statistics,12/01/2022,Exp - Short-Term Contract & Agency Staff - Full Cost,Business Architecture Transformation And Statistical Strategy,Parity Resources Limited,218811," 1,196.83 ",Information Management Services,Large,Programme Expenditure
UK Statistics Family,Office for National Statistics,12/01/2022,Exp - Purchase Of Goods/Services - Contractors,Researcher Support And Data Access ,Parity Resources Limited,218811," 11,880.00 ",Information Management Services,Large,Programme Expenditure
UK Statistics Family,Office for National Statistics,12/01/2022,Exp - Short-Term Contract & Agency Staff - Full Cost,Recruitment ,Parity Resources Limited,218811, 382.14 ,Information Management Services,Large,Programme Expenditure
UK Statistics Family,Office for National Statistics,12/01/2022,Exp - Purchase Of Goods/Services - Contractors,Security Advisory,Parity Resources Limited,218811," 5,510.88 ",Information Management Services,Large,Programme Expenditure
UK Statistics Family,Office for National Statistics,12/01/2022,Exp - Purchase Of Goods/Services - Contractors,Tech Delivery Legacy Sp,Parity Resources Limited,218811," 7,360.80 ",Information Management Services,Large,Programme Expenditure
UK Statistics Family,Office for National Statistics,12/01/2022,Exp - Purchase Of Goods/Services - Contractors,IT Applications,Parity Resources Limited,218811," 20,738.52 ",Information Management Services,Large,Programme Expenditure
UK Statistics Family,Office for National Statistics,12/01/2022,Exp - Purchase Of Goods/Services - Contractors,IT Operations,Parity Resources Limited,218811," 25,226.53 ",Information Management Services,Large,Programme Expenditure
UK Statistics Family,Office for National Statistics,12/01/2022,Exp - Purchase Of Goods/Services - Contractors,Digital Delivery,Parity Resources Limited,218811," 17,028.00 ",Information Management Services,Large,Programme Expenditure
UK Statistics Family,Office for National Statistics,12/01/2022,Exp - Short-Term Contract & Agency Staff - Full Cost,Data Architecture,Talent International,218813," 3,760.68 ",Information Management Services,SME,Programme Expenditure
UK Statistics Family,Office for National Statistics,12/01/2022,Exp - Short-Term Contract & Agency Staff - Full Cost,Data Architecture,Talent International,218813," 6,317.94 ",Information Management Services,SME,Programme Expenditure
UK Statistics Family,Office for National Statistics,12/01/2022,Exp - Purchase Of Goods/Services - Contractors,Strategy And Architecture,Talent International,218813," 19,380.00 ",Information Management Services,SME,Programme Expenditure
UK Statistics Family,Office for National Statistics,12/01/2022,Exp - Purchase Of Goods/Services - Contractors,Tech Delivery Legacy Sp,Talent International,218813," 16,779.00 ",Information Management Services,SME,Programme Expenditure
UK Statistics Family,Office for National Statistics,12/01/2022,Exp - Purchase Of Goods/Services - Contractors,IT Operations,Talent International,218813," 9,360.00 ",Information Management Services,SME,Programme Expenditure
UK Statistics Family,Office for National Statistics,12/01/2022,Exp - Purchase Of Goods/Services - Contractors,Digital Delivery,Talent International,218813," 13,650.00 ",Information Management Services,SME,Programme Expenditure
UK Statistics Family,Office for National Statistics,12/01/2022,Exp - Purchase Of Goods/Services - Contractors,Digital Delivery,Talent International,218813," 10,063.20 ",Information Management Services,SME,Programme Expenditure
UK Statistics Family,Office for National Statistics,12/01/2022,Exp - Short-Term Contract & Agency Staff - Full Cost,Social Survey Transformation Titchfield,Talent International,218813," 5,508.00 ",Information Management Services,SME,Programme Expenditure
UK Statistics Family,Office for National Statistics,13/01/2022,Exp - Purchase Of Goods/Services - Incentive Payments,Survey Management,Park Retail Ltd,218819," 31,271.20 ",Survey Response Incentive Vouchers,Large,Programme Expenditure
UK Statistics Family,Office for National Statistics,13/01/2022,Buildings Under Construction,Property Services,Vinci Construction UK Limited,218820," 79,115.97 ",Facilities Mangement Services,Large,Programme Expenditure
UK Statistics Family,Office for National Statistics,13/01/2022,Buildings Under Construction,Property Newport,Vinci Construction UK Limited,218820," 48,257.18 ",Facilities Mangement Services,Large,Programme Expenditure
UK Statistics Family,Office for National Statistics,13/01/2022,Major Works Over 25K,Property Newport,Vinci Construction UK Limited,218820," 18,261.42 ",Facilities Mangement Services,Large,Programme Expenditure
UK Statistics Family,Office for National Statistics,13/01/2022,FM Contract Payments,Vinci Payments,Vinci Construction UK Limited,218820," 283,982.27 ",Facilities Mangement Services,Large,Programme Expenditure
UK Statistics Family,Office for National Statistics,13/01/2022,Exp - Purchase Of Goods/Services - IT Contractual Services,IT Operations,Ibm United Kingdom Ltd,218822," 28,540.50 ",Information Management Services,Large,Programme Expenditure
UK Statistics Family,Office for National Statistics,13/01/2022,Exp - Purchase Of Goods And Services Consultants,Productivity Research And Professional Development,Niesr,218834," 423,564.00 ",Statistical Services,SME,Programme Expenditure
UK Statistics Family,Office for National Statistics,13/01/2022,"ICT Outsourcing, Maintenance And Support",IT Operations,Bytes Software Services Ltd,218837," 34,656.74 ",Software Licenses,Large,Programme Expenditure
UK Statistics Family,Office for National Statistics,13/01/2022,"ICT Outsourcing, Maintenance And Support",IT Operations,Computacenter (Uk) Limited,218838," 37,785.60 ",Software Licenses,Large,Programme Expenditure
UK Statistics Family,Office for National Statistics,13/01/2022,Office Related Goods And Services,Property Services,Gresham Office Furniture Limited,218844," 29,713.20 ",Office Furniture,SME,Programme Expenditure
UK Statistics Family,Office for National Statistics,13/01/2022,Fixtures & Fittings At Cost - Additions,Property Titchfield,Gresham Office Furniture Limited,218844," 1,873.20 ",Office Furniture,SME,Programme Expenditure
UK Statistics Family,Office for National Statistics,13/01/2022,Surveys,Prices Division,Kantar UK Ltd,218845," 67,788.00 ",Statistical Services,Large,Programme Expenditure
UK Statistics Family,Office for National Statistics,13/01/2022,Exp - Purchase Of Goods/Services - IT Contractual Services,Digital Delivery,Methods Business & Digital Technology Ltd,218847," 31,470.00 ",Information Management Services,Large,Programme Expenditure
UK Statistics Family,Office for National Statistics,13/01/2022,Non IT Maintenance And Hire,Property Services,Eaton Limited,218851," 28,995.00 ",Rental Charges,SME,Programme Expenditure
UK Statistics Family,Office for National Statistics,13/01/2022,Fixtures & Fittings At Cost - Additions,Property Newport,Orange box Limited,218852," 283,909.66 ",Office Furniture,SME,Programme Expenditure
UK Statistics Family,Office for National Statistics,13/01/2022,Fixtures & Fittings At Cost - Additions,Property Titchfield,Orange box Limited,218852," 45,495.86 ",Office Furniture,SME,Programme Expenditure
UK Statistics Family,Office for National Statistics,13/01/2022,End User Software And Hardware,IT Operations,Insight Direct,218854," 106,026.34 ",Information Management Services,Large,Programme Expenditure
UK Statistics Family,Office for National Statistics,14/01/2022,Prepayments - Titchfield Postage Meter,Postage,Pitney Bowes Ltd,218862," 28,625.51 ",Postage Services,Large,Programme Expenditure
UK Statistics Family,Office for National Statistics,14/01/2022,Exp - Purchase Of Goods/Services - Contractors,Digital Publishing,LA FOSSE ASSOCIATES LIMITED,218873," 61,770.00 ",Information Management Services,Large,Programme Expenditure
UK Statistics Family,Office for National Statistics,17/01/2022,Telecoms,IT Operations,Crown Hosting Data Centres Limited,219015, 860.00 ,Information Management Services,SME,Programme Expenditure
UK Statistics Family,Office for National Statistics,17/01/2022,Hosting,IT Operations,Crown Hosting Data Centres Limited,219015," 73,989.76 ",Information Management Services,SME,Programme Expenditure
UK Statistics Family,Office for National Statistics,17/01/2022,Exp - Purchase Of Goods/Services - Contractors,Digital Publishing,Certes Computing Ltd,219018," 14,398.56 ",Information Management Services,SME,Programme Expenditure
UK Statistics Family,Office for National Statistics,17/01/2022,Exp - Purchase Of Goods/Services - Contractors,Best Practice And Impact,Certes Computing Ltd,219018," 19,320.00 ",Information Management Services,SME,Programme Expenditure
UK Statistics Family,Office for National Statistics,17/01/2022,Exp - Purchase Of Goods/Services - Contractors,Census & Soc Methodology Dd,Certes Computing Ltd,219018," 12,238.16 ",Information Management Services,SME,Programme Expenditure
UK Statistics Family,Office for National Statistics,17/01/2022,Exp - Purchase Of Goods/Services - Contractors,Data As A Service,Certes Computing Ltd,219018," 20,034.84 ",Information Management Services,SME,Programme Expenditure
UK Statistics Family,Office for National Statistics,17/01/2022,Exp - Purchase Of Goods/Services - Contractors,Business Architecture,La International,219019," 1,796.47 ",Information Management Services,SME,Programme Expenditure
UK Statistics Family,Office for National Statistics,17/01/2022,Exp - Purchase Of Goods/Services - Contractors,Data Architecture,La International,219019," 12,917.88 ",Information Management Services,SME,Programme Expenditure
UK Statistics Family,Office for National Statistics,17/01/2022,Exp - Purchase Of Goods/Services - Contractors,Data Architecture,La International,219019," 6,609.89 ",Information Management Services,SME,Programme Expenditure
UK Statistics Family,Office for National Statistics,17/01/2022,Exp - Purchase Of Goods/Services - Contractors,Data Architecture,La International,219019," 10,354.19 ",Information Management Services,SME,Programme Expenditure
UK Statistics Family,Office for National Statistics,17/01/2022,Exp - Purchase Of Goods/Services - Contractors,Data Architecture,La International,219019," 7,329.89 ",Information Management Services,SME,Programme Expenditure
UK Statistics Family,Office for National Statistics,17/01/2022,Exp - Purchase Of Goods/Services - Contractors,Data Architecture,La International,219019," 2,568.71 ",Information Management Services,SME,Programme Expenditure
UK Statistics Family,Office for National Statistics,17/01/2022,Exp - Purchase Of Goods/Services - Contractors,CLOUD ARCHITECTURE,La International,219019," 1,666.01 ",Information Management Services,SME,Programme Expenditure
UK Statistics Family,Office for National Statistics,17/01/2022,Exp - Purchase Of Goods/Services - Contractors,IT Operations,La International,219019," 1,736.06 ",Information Management Services,SME,Programme Expenditure
UK Statistics Family,Office for National Statistics,17/01/2022,Exp - Purchase Of Goods/Services - Contractors,Data Architecture,Malikshaw Interim & Executive,219022," 10,800.00 ",Information Management Services,SME,Programme Expenditure
UK Statistics Family,Office for National Statistics,17/01/2022,Exp - Purchase Of Goods/Services - Contractors,Data Architecture,Malikshaw Interim & Executive,219022," 16,598.40 ",Information Management Services,SME,Programme Expenditure
UK Statistics Family,Office for National Statistics,17/01/2022,Exp - Purchase Of Goods/Services - Contractors,Data As A Service,Malikshaw Interim & Executive,219022," 16,264.80 ",Information Management Services,SME,Programme Expenditure
UK Statistics Family,Office for National Statistics,17/01/2022,Hosting,IT Operations,CTS (Cloud Technology Solutions Ltd),219023," 141,516.04 ",DST Infrastructure Preparation,Large,Programme Expenditure
UK Statistics Family,Office for National Statistics,17/01/2022,Exp - Purchase Of Goods/Services - Contractors,Data Architecture,Talent International,219025," 11,519.81 ",Information Management Services,SME,Programme Expenditure
UK Statistics Family,Office for National Statistics,17/01/2022,Exp - Purchase Of Goods/Services - Contractors,Data As A Service,Talent International,219025," 11,340.00 ",Information Management Services,SME,Programme Expenditure
UK Statistics Family,Office for National Statistics,17/01/2022,Exp - Purchase Of Goods/Services - Contractors,Data As A Service,Talent International,219025," 19,350.00 ",Information Management Services,SME,Programme Expenditure
UK Statistics Family,Office for National Statistics,17/01/2022,Exp - Purchase Of Goods/Services - Contractors,Digital Publishing,LA FOSSE ASSOCIATES LIMITED,219026," 13,050.00 ",Information Management Services,Large,Programme Expenditure
UK Statistics Family,Office for National Statistics,17/01/2022,Exp - Purchase Of Goods/Services - Contractors,Data Architecture,LA FOSSE ASSOCIATES LIMITED,219026," 14,310.00 ",Information Management Services,Large,Programme Expenditure
UK Statistics Family,Office for National Statistics,17/01/2022,Exp - Short-Term Contract & Agency Staff - Full Cost,Business Architecture Transformation And Statistical Strategy,SmartSourcing Ltd,219027," 14,025.02 ",Information Management Services,SME,Programme Expenditure
UK Statistics Family,Office for National Statistics,17/01/2022,Exp - Purchase Of Goods/Services - Contractors,Data Architecture,SmartSourcing Ltd,219027," 25,093.92 ",Information Management Services,SME,Programme Expenditure
UK Statistics Family,Office for National Statistics,17/01/2022,Telecoms,Tech Delivery Next Gen IT And Infrastructure,Freedom Communications (UK) Ltd,219031," 2,708.06 ",Telecommunications,Large,Programme Expenditure
UK Statistics Family,Office for National Statistics,17/01/2022,Telecoms,IT Operations,Freedom Communications (UK) Ltd,219031," 29,570.49 ",Telecommunications,Large,Programme Expenditure
UK Statistics Family,Office for National Statistics,18/01/2022,Exp - Purchase Of Goods/Services - IT Contractual Services,Digital Publishing,Swirrl It Ltd,219199," 71,640.00 ",Information Management Services,SME,Programme Expenditure
UK Statistics Family,Office for National Statistics,18/01/2022,Exp - Purchase Of Goods/Services - Contractors,Business Architecture,Concept Information Technology Ltd T/A Concept Resourcing,219201," 20,710.38 ",Information Management Services,Large,Programme Expenditure
UK Statistics Family,Office for National Statistics,18/01/2022,Exp - Short-Term Contract & Agency Staff - Full Cost,Covid Infection Survey,Concept Information Technology Ltd T/A Concept Resourcing,219201," 4,667.40 ",Information Management Services,Large,Programme Expenditure
UK Statistics Family,Office for National Statistics,18/01/2022,Exp - Short-Term Contract & Agency Staff - Full Cost,Covid Infection Survey,Concept Information Technology Ltd T/A Concept Resourcing,219201," 10,114.35 ",Information Management Services,Large,Programme Expenditure
UK Statistics Family,Office for National Statistics,18/01/2022,Exp - Short-Term Contract & Agency Staff - Full Cost,Covid Infection Survey,Concept Information Technology Ltd T/A Concept Resourcing,219201," 3,432.12 ",Information Management Services,Large,Programme Expenditure
UK Statistics Family,Office for National Statistics,18/01/2022,Exp - Short-Term Contract & Agency Staff - Full Cost,Covid Infection Survey,Concept Information Technology Ltd T/A Concept Resourcing,219201," 4,015.49 ",Information Management Services,Large,Programme Expenditure
UK Statistics Family,Office for National Statistics,18/01/2022,Exp - Purchase Of Goods/Services - Contractors,Digital Publishing,Concept Information Technology Ltd T/A Concept Resourcing,219201," 14,330.88 ",Information Management Services,Large,Programme Expenditure
UK Statistics Family,Office for National Statistics,18/01/2022,Exp - Short-Term Contract & Agency Staff - Full Cost,Strategy And Engagement,Concept Information Technology Ltd T/A Concept Resourcing,219201," 4,088.40 ",Information Management Services,Large,Programme Expenditure
UK Statistics Family,Office for National Statistics,18/01/2022,Exp - Short-Term Contract & Agency Staff - Full Cost,Business Architecture Transformation And Statistical Strategy,Concept Information Technology Ltd T/A Concept Resourcing,219201," 5,407.63 ",Information Management Services,Large,Programme Expenditure
UK Statistics Family,Office for National Statistics,18/01/2022,Exp - Short-Term Contract & Agency Staff - Full Cost,Business Architecture Transformation And Statistical Strategy,Concept Information Technology Ltd T/A Concept Resourcing,219201," 10,957.25 ",Information Management Services,Large,Programme Expenditure
UK Statistics Family,Office for National Statistics,18/01/2022,Exp - Purchase Of Goods And Services Consultants,Business Architecture Transformation And Statistical Strategy,Concept Information Technology Ltd T/A Concept Resourcing,219201," 9,744.00 ",Information Management Services,Large,Programme Expenditure
UK Statistics Family,Office for National Statistics,18/01/2022,Exp - Short-Term Contract & Agency Staff - Full Cost,Data Architecture,Concept Information Technology Ltd T/A Concept Resourcing,219201," 5,748.91 ",Information Management Services,Large,Programme Expenditure
UK Statistics Family,Office for National Statistics,18/01/2022,Exp - Short-Term Contract & Agency Staff - Full Cost,Data Architecture,Concept Information Technology Ltd T/A Concept Resourcing,219201," 2,948.16 ",Information Management Services,Large,Programme Expenditure
UK Statistics Family,Office for National Statistics,18/01/2022,Exp - Purchase Of Goods/Services - Contractors,Social Survey Transformation Titchfield,Concept Information Technology Ltd T/A Concept Resourcing,219201," 9,668.16 ",Information Management Services,Large,Programme Expenditure
UK Statistics Family,Office for National Statistics,18/01/2022,Exp - Short-Term Contract & Agency Staff - Full Cost,Prices Division,Concept Information Technology Ltd T/A Concept Resourcing,219201," 5,153.06 ",Information Management Services,Large,Programme Expenditure
UK Statistics Family,Office for National Statistics,18/01/2022,Exp - Short-Term Contract & Agency Staff - Full Cost,Prices Division,Concept Information Technology Ltd T/A Concept Resourcing,219201," 6,589.67 ",Information Management Services,Large,Programme Expenditure
UK Statistics Family,Office for National Statistics,18/01/2022,Exp - Short-Term Contract & Agency Staff - Full Cost,Prices Division,Concept Information Technology Ltd T/A Concept Resourcing,219201," 27,424.48 ",Information Management Services,Large,Programme Expenditure
UK Statistics Family,Office for National Statistics,18/01/2022,Exp - Short-Term Contract & Agency Staff - Full Cost,Corporations,Concept Information Technology Ltd T/A Concept Resourcing,219201," 2,818.54 ",Information Management Services,Large,Programme Expenditure
UK Statistics Family,Office for National Statistics,18/01/2022,Telecoms,IT Operations,Bt Global Services,219202," 25,197.02 ",Telecommunications,Large,Programme Expenditure
UK Statistics Family,Office for National Statistics,18/01/2022,Exp - Purchase Of Goods/Services - Contractors,Strategy And Architecture,Certes Computing Ltd,219205," 10,376.10 ",Information Management Services,SME,Programme Expenditure
UK Statistics Family,Office for National Statistics,18/01/2022,Exp - Purchase Of Goods/Services - Contractors,Digital Delivery,Certes Computing Ltd,219205," 20,624.10 ",Information Management Services,SME,Programme Expenditure
UK Statistics Family,Office for National Statistics,18/01/2022,Exp - Purchase Of Goods/Services - Contractors,2023 CENSUS DATA TRANSFORMATION,La International,219206," 10,753.21 ",Information Management Services,SME,Programme Expenditure
UK Statistics Family,Office for National Statistics,18/01/2022,Exp - Purchase Of Goods/Services - Contractors,Testing,La International,219206," 13,424.78 ",Information Management Services,SME,Programme Expenditure
UK Statistics Family,Office for National Statistics,18/01/2022,Exp - Purchase Of Goods/Services - Contractors,Testing,La International,219206," 3,424.94 ",Information Management Services,SME,Programme Expenditure
UK Statistics Family,Office for National Statistics,18/01/2022,Exp - Purchase Of Goods/Services - Contractors,Testing,La International,219206," 5,708.24 ",Information Management Services,SME,Programme Expenditure
UK Statistics Family,Office for National Statistics,18/01/2022,Exp - Purchase Of Goods/Services - Contractors,Consultancy Management,La International,219206," 2,870.64 ",Information Management Services,SME,Programme Expenditure
UK Statistics Family,Office for National Statistics,18/01/2022,Exp - Purchase Of Goods/Services - Contractors,Data Architecture,La International,219206," 14,332.25 ",Information Management Services,SME,Programme Expenditure
UK Statistics Family,Office for National Statistics,18/01/2022,Exp - Purchase Of Goods/Services - Contractors,CLOUD ARCHITECTURE,La International,219206," 20,360.54 ",Information Management Services,SME,Programme Expenditure
UK Statistics Family,Office for National Statistics,18/01/2022,Exp - Purchase Of Goods/Services - Contractors,Strategy And Architecture,La International,219206," 3,588.30 ",Information Management Services,SME,Programme Expenditure
UK Statistics Family,Office for National Statistics,18/01/2022,Exp - Purchase Of Goods/Services - Contractors,Tech Delivery Legacy Sp,La International,219206," 6,160.80 ",Information Management Services,SME,Programme Expenditure
UK Statistics Family,Office for National Statistics,18/01/2022,Exp - Purchase Of Goods/Services - Contractors,IT Applications,La International,219206," 14,929.30 ",Information Management Services,SME,Programme Expenditure
UK Statistics Family,Office for National Statistics,18/01/2022,Exp - Purchase Of Goods/Services - Contractors,IT Operations,La International,219206," 3,472.13 ",Information Management Services,SME,Programme Expenditure
UK Statistics Family,Office for National Statistics,18/01/2022,Exp - Short-Term Contract & Agency Staff - Full Cost,Office Of Chief Data And Information,La International,219206, 719.28 ,Information Management Services,SME,Programme Expenditure
UK Statistics Family,Office for National Statistics,18/01/2022,Exp - Purchase Of Goods/Services - Contractors,Office Of Chief Data And Information,La International,219206, 913.68 ,Information Management Services,SME,Programme Expenditure
UK Statistics Family,Office for National Statistics,18/01/2022,Exp - Purchase Of Goods/Services - IT Contractual Services,IT Applications,Diegesis Limited,219213," 162,330.00 ",Information Management Services,Large,Programme Expenditure
UK Statistics Family,Office for National Statistics,18/01/2022,Exp - Purchase Of Goods/Services - Contractors,Crime Statistics,University of Bristol,219214," 47,700.15 ",Statistical Services,SME,Programme Expenditure
UK Statistics Family,Office for National Statistics,18/01/2022,"ICT Outsourcing, Maintenance And Support",Digital Publishing,Storm ID Ltd,219220," 27,942.00 ",Information Management Services,Large,Programme Expenditure
UK Statistics Family,Office for National Statistics,19/01/2022,Buildings Under Construction,Property Newport,Vinci Construction UK Limited,219390," 179,853.60 ",Facilities Mangement Services,Large,Programme Expenditure
UK Statistics Family,Office for National Statistics,19/01/2022,Major Works Over 25K,Property Newport,Vinci Construction UK Limited,219390," 482,084.40 ",Facilities Mangement Services,Large,Programme Expenditure
UK Statistics Family,Office for National Statistics,19/01/2022,Postage,Survey Processing Centre,DHL Parcel Ltd,219394," 44,533.15 ",Postage Services,Large,Programme Expenditure
UK Statistics Family,Office for National Statistics,19/01/2022,Print & Post,Social Survey Transformation Newport,APS Group,219400," 319,477.81 ",Print and Post Services,Large,Programme Expenditure
UK Statistics Family,Office for National Statistics,19/01/2022,Exp - Purchase Of Goods/Services - IT Contractual Services,Digital Delivery,Methods Business & Digital Technology Ltd,219404," 47,520.00 ",Information Management Services,Large,Programme Expenditure
UK Statistics Family,Office for National Statistics,19/01/2022,Exp - Purchase Of Goods/Services - Contractors,Business Architecture,LA FOSSE ASSOCIATES LIMITED,219406," 17,545.00 ",Information Management Services,Large,Programme Expenditure
UK Statistics Family,Office for National Statistics,19/01/2022,Exp - Purchase Of Goods/Services - Contractors,Business Architecture,LA FOSSE ASSOCIATES LIMITED,219406," 14,645.00 ",Information Management Services,Large,Programme Expenditure
UK Statistics Family,Office for National Statistics,19/01/2022,Exp - Purchase Of Goods/Services - Contractors,Consultancy Management,LA FOSSE ASSOCIATES LIMITED,219406," 10,799.82 ",Information Management Services,Large,Programme Expenditure
UK Statistics Family,Office for National Statistics,19/01/2022,Exp - Purchase Of Goods/Services - Contractors,Consultancy Management,LA FOSSE ASSOCIATES LIMITED,219406," 1,439.98 ",Information Management Services,Large,Programme Expenditure
UK Statistics Family,Office for National Statistics,19/01/2022,Exp - Purchase Of Goods/Services - IT Contractual Services,Strategy And Architecture,Chaucer Group Ltd,219411," 20,433.60 ",Information Management Services,SME,Programme Expenditure
UK Statistics Family,Office for National Statistics,19/01/2022,Exp - Purchase Of Goods/Services - IT Contractual Services,Strategy And Architecture,Chaucer Group Ltd,219411," 37,065.60 ",Information Management Services,SME,Programme Expenditure
UK Statistics Family,Office for National Statistics,20/01/2022,"ICT Outsourcing, Maintenance And Support",Interviewer Support,Totalmobile Ltd,219418," 127,170.00 ",Software Licenses,SME,Programme Expenditure
UK Statistics Family,Office for National Statistics,20/01/2022,Surveys,ECONOMIC CHANGE,Bureau Van Dijk Electronic Publishing,219424," 70,491.30 ",Training and Educational Services,SME,Programme Expenditure
UK Statistics Family,Office for National Statistics,20/01/2022,Exp - Purchase Of Goods/Services - Contractors,Covid Infection Survey,Talent International,219429," 11,700.00 ",Information Management Services,SME,Programme Expenditure
UK Statistics Family,Office for National Statistics,20/01/2022,Exp - Short-Term Contract & Agency Staff - Full Cost,STRATEGY SYNTHESIS AND CO-ORDINATION,Talent International,219429,-543.46 ,Information Management Services,SME,Programme Expenditure
UK Statistics Family,Office for National Statistics,20/01/2022,Exp - Short-Term Contract & Agency Staff - Full Cost,Census & Soc Methodology Dd,Talent International,219429," 6,242.40 ",Information Management Services,SME,Programme Expenditure
UK Statistics Family,Office for National Statistics,20/01/2022,Exp - Short-Term Contract & Agency Staff - Full Cost,Data Architecture,Talent International,219429," 6,399.28 ",Information Management Services,SME,Programme Expenditure
UK Statistics Family,Office for National Statistics,20/01/2022,Exp - Purchase Of Goods/Services - Contractors,Data Architecture,Talent International,219429," 16,320.00 ",Information Management Services,SME,Programme Expenditure
UK Statistics Family,Office for National Statistics,20/01/2022,Exp - Short-Term Contract & Agency Staff - Full Cost,Data As A Service,Talent International,219429," 11,455.37 ",Information Management Services,SME,Programme Expenditure
UK Statistics Family,Office for National Statistics,20/01/2022,Exp - Purchase Of Goods/Services - Incentive Payments,Covid Infection Survey,Sodexo Motivation Solutions U.K. ltd,219430," 63,314.51 ",Survey Response Incentive Vouchers,Large,Programme Expenditure
UK Statistics Family,Office for National Statistics,20/01/2022,Exp - Purchase Of Goods/Services - Contractors,Business Architecture,LA FOSSE ASSOCIATES LIMITED,219431," 8,100.00 ",Information Management Services,Large,Programme Expenditure
UK Statistics Family,Office for National Statistics,20/01/2022,Exp - Purchase Of Goods/Services - Contractors,Business Architecture,LA FOSSE ASSOCIATES LIMITED,219431," 22,680.00 ",Information Management Services,Large,Programme Expenditure
UK Statistics Family,Office for National Statistics,20/01/2022,Exp - Purchase Of Goods/Services - Contractors,INTEGRATED DATA STRATEGY AND DELIVERY,LA FOSSE ASSOCIATES LIMITED,219431," 12,960.00 ",Information Management Services,Large,Programme Expenditure
UK Statistics Family,Office for National Statistics,20/01/2022,Exp - Purchase Of Goods/Services - Contractors,Data Capability,Parity Resources Limited,219434," 17,856.55 ",Information Management Services,Large,Programme Expenditure
UK Statistics Family,Office for National Statistics,20/01/2022,Exp - Purchase Of Goods/Services - Contractors,Portfolio Delivery,Parity Resources Limited,219434," 25,183.45 ",Information Management Services,Large,Programme Expenditure
UK Statistics Family,Office for National Statistics,20/01/2022,Exp - Purchase Of Goods/Services - Contractors,Strategy And Architecture,Parity Resources Limited,219434," 9,021.00 ",Information Management Services,Large,Programme Expenditure
UK Statistics Family,Office for National Statistics,20/01/2022,Exp - Purchase Of Goods/Services - Contractors,IT Applications,Parity Resources Limited,219434," 8,170.20 ",Information Management Services,Large,Programme Expenditure
UK Statistics Family,Office for National Statistics,20/01/2022,Exp - Purchase Of Goods/Services - Contractors,IT Operations,Parity Resources Limited,219434," 11,731.50 ",Information Management Services,Large,Programme Expenditure
UK Statistics Family,Office for National Statistics,20/01/2022,Surveys,International Trade And Transactions,Mango Solutions,219440," 9,792.00 ",Information Management Services,SME,Programme Expenditure
UK Statistics Family,Office for National Statistics,20/01/2022,Surveys,International Trade And Transactions,Mango Solutions,219440," 19,584.00 ",Information Management Services,SME,Programme Expenditure
UK Statistics Family,Office for National Statistics,20/01/2022,Exp - Purchase Of Goods/Services - Incentive Payments,Survey Management,Park Retail Ltd,219441," 30,480.59 ",Survey Response Incentive Vouchers,Large,Programme Expenditure
UK Statistics Family,Office for National Statistics,20/01/2022,Exp - Purchase Of Goods/Services - Incentive Payments,Survey Management,Park Retail Ltd,219441," 4,751.38 ",Survey Response Incentive Vouchers,Large,Programme Expenditure
UK Statistics Family,Office for National Statistics,20/01/2022,Exp - Purchase Of Goods/Services - Incentive Payments,Survey Management,Park Retail Ltd,219441," 10,345.28 ",Survey Response Incentive Vouchers,Large,Programme Expenditure
UK Statistics Family,Office for National Statistics,20/01/2022,Exp - Purchase Of Goods/Services - Incentive Payments,Survey Management,Park Retail Ltd,219441," 3,534.72 ",Survey Response Incentive Vouchers,Large,Programme Expenditure
UK Statistics Family,Office for National Statistics,20/01/2022,Exp - Purchase Of Goods/Services - Incentive Payments,Social Survey Transformation Newport,Park Retail Ltd,219441, 102.48 ,Survey Response Incentive Vouchers,Large,Programme Expenditure
UK Statistics Family,Office for National Statistics,20/01/2022,Print & Post,Social Survey Transformation Newport,APS Group,219451," 54,374.20 ",Print and Post Services,Large,Programme Expenditure
UK Statistics Family,Office for National Statistics,21/01/2022,Other Goods And Services,Productivity Research And Professional Development,The Alan Turing Institute,219456," 131,637.00 ",Collaborative Research,SME,Programme Expenditure
UK Statistics Family,Office for National Statistics,21/01/2022,Exp - Purchase Of Goods/Services - Contractors,Digital Publishing,Talent International,219462," 28,896.00 ",Information Management Services,SME,Programme Expenditure
UK Statistics Family,Office for National Statistics,21/01/2022,Exp - Short-Term Contract & Agency Staff - Full Cost,Data Architecture,Talent International,219462," 2,557.26 ",Information Management Services,SME,Programme Expenditure
UK Statistics Family,Office for National Statistics,21/01/2022,Exp - Short-Term Contract & Agency Staff - Full Cost,Public Sector And Households,Talent International,219462," 2,569.46 ",Information Management Services,SME,Programme Expenditure
UK Statistics Family,Office for National Statistics,21/01/2022,Other Goods And Services,Ask Business Services,VITALITY CORPORATE SERVICES LIMITED,219466," 27,761.28 ",Insurance Services,SME,Programme Expenditure
UK Statistics Family,Office for National Statistics,21/01/2022,Marketing & Media,Stakeholder Engagement And Comms,Family & Education / iChild,219467," 40,296.00 ",Consultancy,SME,Programme Expenditure
UK Statistics Family,Office for National Statistics,24/01/2022,Exp - Short-Term Contract & Agency Staff - Full Cost,Productivity Research And Professional Development,Parity Resources Limited,219597," 3,925.44 ",Information Management Services,Large,Programme Expenditure
UK Statistics Family,Office for National Statistics,24/01/2022,Exp - Purchase Of Goods/Services - Contractors,Commercial Services,Parity Resources Limited,219597," 11,406.24 ",Information Management Services,Large,Programme Expenditure
UK Statistics Family,Office for National Statistics,24/01/2022,Exp - Purchase Of Goods/Services - Contractors,CLOUD ARCHITECTURE,Parity Resources Limited,219597," 2,744.40 ",Information Management Services,Large,Programme Expenditure
UK Statistics Family,Office for National Statistics,24/01/2022,Exp - Purchase Of Goods/Services - Contractors,IT Operations,Parity Resources Limited,219597," 9,865.20 ",Information Management Services,Large,Programme Expenditure
UK Statistics Family,Office for National Statistics,24/01/2022,Exp - Purchase Of Goods/Services - Contractors,GSS Strategy Delivery,Derbyshire Gypsy Liaison Group,219599," 78,750.00 ",Research Services,SME,Programme Expenditure
UK Statistics Family,Office for National Statistics,24/01/2022,Exp - Short-Term Contract & Agency Staff - Full Cost,Recruitment ,SmartSourcing Ltd,219611," 2,732.40 ",Information Management Services,SME,Programme Expenditure
UK Statistics Family,Office for National Statistics,24/01/2022,Exp - Purchase Of Goods/Services - Contractors,Data Architecture,SmartSourcing Ltd,219611," 30,926.98 ",Information Management Services,SME,Programme Expenditure
UK Statistics Family,Office for National Statistics,24/01/2022,Exp - Purchase Of Goods/Services - Contractors,Tech Delivery Data As A Platform,SmartSourcing Ltd,219611," 3,600.00 ",Information Management Services,SME,Programme Expenditure
UK Statistics Family,Office for National Statistics,24/01/2022,"ICT Outsourcing, Maintenance And Support",IT Operations,Cdw Limited,219612," 105,978.95 ",Software Licenses,Large,Programme Expenditure
UK Statistics Family,Office for National Statistics,25/01/2022,FM Contract Payments,Vinci Payments,Vinci Construction UK Limited,219704," 341,518.57 ",Facilities Mangement Services,Large,Programme Expenditure
UK Statistics Family,Office for National Statistics,25/01/2022,Exp - Short-Term Contract & Agency Staff - Full Cost,Data As A Service,Concept Information Technology Ltd T/A Concept Resourcing,219705," 4,869.90 ",Information Management Services,Large,Programme Expenditure
UK Statistics Family,Office for National Statistics,25/01/2022,Exp - Short-Term Contract & Agency Staff - Full Cost,Social Surveys Division,Concept Information Technology Ltd T/A Concept Resourcing,219705," 8,031.15 ",Information Management Services,Large,Programme Expenditure
UK Statistics Family,Office for National Statistics,25/01/2022,Exp - Short-Term Contract & Agency Staff - Full Cost,Business Outputs And Developments,Concept Information Technology Ltd T/A Concept Resourcing,219705," 3,912.61 ",Information Management Services,Large,Programme Expenditure
UK Statistics Family,Office for National Statistics,25/01/2022,Exp - Short-Term Contract & Agency Staff - Full Cost,Labour Market,Concept Information Technology Ltd T/A Concept Resourcing,219705," 3,589.81 ",Information Management Services,Large,Programme Expenditure
UK Statistics Family,Office for National Statistics,25/01/2022,Exp - Short-Term Contract & Agency Staff - Full Cost,Labour Market,Concept Information Technology Ltd T/A Concept Resourcing,219705," 5,180.04 ",Information Management Services,Large,Programme Expenditure
UK Statistics Family,Office for National Statistics,25/01/2022,Exp - Purchase Of Goods/Services - Contractors,Strategy And Architecture,Certes Computing Ltd,219709," 14,987.81 ",Information Management Services,SME,Programme Expenditure
UK Statistics Family,Office for National Statistics,25/01/2022,Exp - Purchase Of Goods/Services - Contractors,Tech Delivery Data As A Platform,Certes Computing Ltd,219709," 10,078.99 ",Information Management Services,SME,Programme Expenditure
UK Statistics Family,Office for National Statistics,25/01/2022,Exp - Purchase Of Goods/Services - Contractors,Digital Publishing,Malikshaw Interim & Executive,219715," 17,630.48 ",Information Management Services,SME,Programme Expenditure
UK Statistics Family,Office for National Statistics,25/01/2022,Exp - Short-Term Contract & Agency Staff - Full Cost,Data Architecture,Malikshaw Interim & Executive,219715," 4,493.00 ",Information Management Services,SME,Programme Expenditure
UK Statistics Family,Office for National Statistics,25/01/2022,Exp - Purchase Of Goods/Services - Contractors,Data As A Service,Malikshaw Interim & Executive,219715," 14,238.00 ",Information Management Services,SME,Programme Expenditure
UK Statistics Family,Office for National Statistics,25/01/2022,Software Licences At Cost - Additions,CLOUD ARCHITECTURE,Amazon Web Services Inc,219717," 200,416.19 ",Information Management Services,Large,Programme Expenditure
UK Statistics Family,Office for National Statistics,25/01/2022,Hosting,CDIO UNGP,Amazon Web Services Inc,219717,-251.16 ,Information Management Services,Large,Programme Expenditure
UK Statistics Family,Office for National Statistics,25/01/2022,Hosting,IT Operations,Amazon Web Services Inc,219717,"-2,568.50 ",Information Management Services,Large,Programme Expenditure
UK Statistics Family,Office for National Statistics,25/01/2022,Postage,Interviewer Support,Banner Group Ltd,219725," 25,542.00 ",Stationery,SME,Programme Expenditure
UK Statistics Family,Office for National Statistics,25/01/2022,Print & Post,Social Survey Transformation Newport,APS Group,219732," 83,398.16 ",Print and Post Services,Large,Programme Expenditure
UK Statistics Family,Office for National Statistics,25/01/2022,Exp - Permanent UK Staff - PRP Voucher Payments,ONS Corporate Funds,Edenred (UK Group) Limited,219737," 49,750.00 ",Performance Reward Vouchers,Large,Programme Expenditure
UK Statistics Family,Office for National Statistics,26/01/2022,Telecoms,Covid Infection Survey,Vodafone Corporate Ltd,219744," 28,060.20 ",Telecommunications,Large,Programme Expenditure
UK Statistics Family,Office for National Statistics,26/01/2022,Exp - Short-Term Contract & Agency Staff - Full Cost,Business Change Support,Concept Information Technology Ltd T/A Concept Resourcing,219747," 8,237.08 ",Information Management Services,Large,Programme Expenditure
UK Statistics Family,Office for National Statistics,26/01/2022,Exp - Short-Term Contract & Agency Staff - Full Cost,Business Change Support,Concept Information Technology Ltd T/A Concept Resourcing,219747," 12,014.88 ",Information Management Services,Large,Programme Expenditure
UK Statistics Family,Office for National Statistics,26/01/2022,Exp - Short-Term Contract & Agency Staff - Full Cost,Business Change Support,Concept Information Technology Ltd T/A Concept Resourcing,219747," 4,118.54 ",Information Management Services,Large,Programme Expenditure
UK Statistics Family,Office for National Statistics,26/01/2022,Exp - Short-Term Contract & Agency Staff - Full Cost,Business Change Support,Concept Information Technology Ltd T/A Concept Resourcing,219747," 4,118.54 ",Information Management Services,Large,Programme Expenditure
UK Statistics Family,Office for National Statistics,26/01/2022,Exp - Short-Term Contract & Agency Staff - Full Cost,Business Change Support,Concept Information Technology Ltd T/A Concept Resourcing,219747," 4,118.54 ",Information Management Services,Large,Programme Expenditure
UK Statistics Family,Office for National Statistics,26/01/2022,Exp - Short-Term Contract & Agency Staff - Full Cost,Business Change Support,Concept Information Technology Ltd T/A Concept Resourcing,219747," 8,694.20 ",Information Management Services,Large,Programme Expenditure
UK Statistics Family,Office for National Statistics,26/01/2022,Exp - Short-Term Contract & Agency Staff - Full Cost,Business Change Support,Concept Information Technology Ltd T/A Concept Resourcing,219747," 14,231.64 ",Information Management Services,Large,Programme Expenditure
UK Statistics Family,Office for National Statistics,26/01/2022,Exp - Short-Term Contract & Agency Staff - Full Cost,N A Coordination,Concept Information Technology Ltd T/A Concept Resourcing,219747," 1,877.93 ",Information Management Services,Large,Programme Expenditure
UK Statistics Family,Office for National Statistics,26/01/2022,Exp - Short-Term Contract & Agency Staff - Full Cost,International Trade And Transactions,Concept Information Technology Ltd T/A Concept Resourcing,219747," 4,118.54 ",Information Management Services,Large,Programme Expenditure
UK Statistics Family,Office for National Statistics,26/01/2022,Exp - Short-Term Contract & Agency Staff - Full Cost,International Trade And Transactions,Concept Information Technology Ltd T/A Concept Resourcing,219747," 3,136.42 ",Information Management Services,Large,Programme Expenditure
UK Statistics Family,Office for National Statistics,26/01/2022,Exp - Short-Term Contract & Agency Staff - Full Cost,International Trade And Transactions,Concept Information Technology Ltd T/A Concept Resourcing,219747," 27,104.09 ",Information Management Services,Large,Programme Expenditure
UK Statistics Family,Office for National Statistics,26/01/2022,Exp - Short-Term Contract & Agency Staff - Full Cost,Strategy And Engagement,Concept Information Technology Ltd T/A Concept Resourcing,219747," 2,504.05 ",Information Management Services,Large,Programme Expenditure
UK Statistics Family,Office for National Statistics,26/01/2022,Exp - Short-Term Contract & Agency Staff - Full Cost,Business Architecture Transformation And Statistical Strategy,Concept Information Technology Ltd T/A Concept Resourcing,219747," 3,815.22 ",Information Management Services,Large,Programme Expenditure
UK Statistics Family,Office for National Statistics,26/01/2022,Exp - Purchase Of Goods/Services - IT Contractual Services,CDIO UNGP,Concept Information Technology Ltd T/A Concept Resourcing,219747," 1,440.00 ",Information Management Services,Large,Programme Expenditure
UK Statistics Family,Office for National Statistics,26/01/2022,Exp - Short-Term Contract & Agency Staff - Full Cost,Public Sector And Households,Concept Information Technology Ltd T/A Concept Resourcing,219747," 2,352.31 ",Information Management Services,Large,Programme Expenditure
UK Statistics Family,Office for National Statistics,26/01/2022,Exp - Short-Term Contract & Agency Staff - Full Cost,Business Statistics Transformation,Concept Information Technology Ltd T/A Concept Resourcing,219747," 9,972.52 ",Information Management Services,Large,Programme Expenditure
UK Statistics Family,Office for National Statistics,26/01/2022,Exp - Purchase Of Goods/Services - Contractors,2023 CENSUS DATA TRANSFORMATION,La International,219749," 10,631.05 ",Information Management Services,SME,Programme Expenditure
UK Statistics Family,Office for National Statistics,26/01/2022,Exp - Purchase Of Goods/Services - Contractors,Business Architecture,La International,219749," 4,491.18 ",Information Management Services,SME,Programme Expenditure
UK Statistics Family,Office for National Statistics,26/01/2022,Exp - Purchase Of Goods/Services - Contractors,Testing,La International,219749," 20,946.00 ",Information Management Services,SME,Programme Expenditure
UK Statistics Family,Office for National Statistics,26/01/2022,Exp - Purchase Of Goods/Services - Contractors,Testing,La International,219749," 7,135.30 ",Information Management Services,SME,Programme Expenditure
UK Statistics Family,Office for National Statistics,26/01/2022,Exp - Purchase Of Goods/Services - Contractors,Consultancy Management,La International,219749," 2,870.64 ",Information Management Services,SME,Programme Expenditure
UK Statistics Family,Office for National Statistics,26/01/2022,Exp - Purchase Of Goods/Services - Contractors,Covid Infection Survey,La International,219749," 5,971.77 ",Information Management Services,SME,Programme Expenditure
UK Statistics Family,Office for National Statistics,26/01/2022,Exp - Purchase Of Goods/Services - Contractors,Digital Publishing,La International,219749," 11,258.88 ",Information Management Services,SME,Programme Expenditure
UK Statistics Family,Office for National Statistics,26/01/2022,Exp - Purchase Of Goods/Services - Contractors,Data Architecture,La International,219749," 4,131.18 ",Information Management Services,SME,Programme Expenditure
UK Statistics Family,Office for National Statistics,26/01/2022,Exp - Purchase Of Goods/Services - Contractors,Data Architecture,La International,219749," 14,197.84 ",Information Management Services,SME,Programme Expenditure
UK Statistics Family,Office for National Statistics,26/01/2022,Exp - Purchase Of Goods/Services - Contractors,Data Architecture,La International,219749," 6,849.89 ",Information Management Services,SME,Programme Expenditure
UK Statistics Family,Office for National Statistics,26/01/2022,Exp - Purchase Of Goods/Services - Contractors,CLOUD ARCHITECTURE,La International,219749," 11,854.26 ",Information Management Services,SME,Programme Expenditure
UK Statistics Family,Office for National Statistics,26/01/2022,Exp - Purchase Of Goods/Services - Contractors,Strategy And Architecture,La International,219749," 5,023.62 ",Information Management Services,SME,Programme Expenditure
UK Statistics Family,Office for National Statistics,26/01/2022,Exp - Purchase Of Goods/Services - Contractors,Tech Delivery Data As A Platform,La International,219749," 7,497.04 ",Information Management Services,SME,Programme Expenditure
UK Statistics Family,Office for National Statistics,26/01/2022,Exp - Purchase Of Goods/Services - Contractors,Tech Delivery Data As A Platform,La International,219749," 6,773.24 ",Information Management Services,SME,Programme Expenditure
UK Statistics Family,Office for National Statistics,26/01/2022,Exp - Purchase Of Goods/Services - Contractors,Tech Delivery Data As A Platform,La International,219749," 5,741.28 ",Information Management Services,SME,Programme Expenditure
UK Statistics Family,Office for National Statistics,26/01/2022,Exp - Purchase Of Goods/Services - Contractors,IT Applications,La International,219749," 14,846.78 ",Information Management Services,SME,Programme Expenditure
UK Statistics Family,Office for National Statistics,26/01/2022,Exp - Purchase Of Goods/Services - Contractors,IT Operations,La International,219749," 9,425.30 ",Information Management Services,SME,Programme Expenditure
UK Statistics Family,Office for National Statistics,26/01/2022,Exp - Purchase Of Goods/Services - Contractors,Office Of Chief Data And Information,La International,219749, 959.04 ,Information Management Services,SME,Programme Expenditure
UK Statistics Family,Office for National Statistics,26/01/2022,Exp - Purchase Of Goods/Services - IT Contractual Services,CLOUD ARCHITECTURE,CTS (Cloud Technology Solutions Ltd),219754," 41,796.00 ",DST Infrastructure Preparation,Large,Programme Expenditure
UK Statistics Family,Office for National Statistics,26/01/2022,Training & Development,Learning And Capability,Insights Learning and Development Limited,219756," 27,000.00 ",Training and Educational Services,SME,Programme Expenditure
UK Statistics Family,Office for National Statistics,26/01/2022,Exp - Purchase Of Goods/Services - Contractors,Consultancy Management,Parity Resources Limited,219760," 4,198.76 ",Information Management Services,Large,Programme Expenditure
UK Statistics Family,Office for National Statistics,26/01/2022,Exp - Purchase Of Goods/Services - Contractors,Covid Infection Survey,Parity Resources Limited,219760," 2,993.80 ",Information Management Services,Large,Programme Expenditure
UK Statistics Family,Office for National Statistics,26/01/2022,Exp - Short-Term Contract & Agency Staff - Full Cost,Recruitment ,Parity Resources Limited,219760, 732.60 ,Information Management Services,Large,Programme Expenditure
UK Statistics Family,Office for National Statistics,26/01/2022,Exp - Purchase Of Goods/Services - Contractors,Data Architecture,Parity Resources Limited,219760," 25,976.70 ",Information Management Services,Large,Programme Expenditure
UK Statistics Family,Office for National Statistics,26/01/2022,Exp - Purchase Of Goods/Services - Contractors,CLOUD ARCHITECTURE,Parity Resources Limited,219760," 3,430.50 ",Information Management Services,Large,Programme Expenditure
UK Statistics Family,Office for National Statistics,26/01/2022,Exp - Purchase Of Goods/Services - Contractors,Tech Delivery Legacy Sp,Parity Resources Limited,219760," 3,680.40 ",Information Management Services,Large,Programme Expenditure
UK Statistics Family,Office for National Statistics,26/01/2022,Exp - Purchase Of Goods/Services - Contractors,IT Operations,Parity Resources Limited,219760," 11,671.50 ",Information Management Services,Large,Programme Expenditure
UK Statistics Family,Office for National Statistics,26/01/2022,Exp - Purchase Of Goods/Services - Contractors,Data Science Campus,Parity Resources Limited,219760, 662.10 ,Information Management Services,Large,Programme Expenditure
UK Statistics Family,Office for National Statistics,27/01/2022,Exp - Purchase Of Goods/Services - Contractors,Digital Publishing,Talent International,220012," 27,090.00 ",Information Management Services,SME,Programme Expenditure
UK Statistics Family,Office for National Statistics,27/01/2022,Exp - Purchase Of Goods/Services - Incentive Payments,Covid Infection Survey,Sodexo Motivation Solutions U.K. ltd,220013," 33,822.38 ",Survey Response Incentive Vouchers,Large,Programme Expenditure
UK Statistics Family,Office for National Statistics,27/01/2022,Telecoms,IT Operations,Bt Global Services,220021," 47,915.94 ",Telecommunications,Large,Programme Expenditure
UK Statistics Family,Office for National Statistics,27/01/2022,Accommodation & Building Management,Interview Management IPS,Heathrow Airport,220023," 58,116.96 ",Rental Charges,Large,Programme Expenditure
UK Statistics Family,Office for National Statistics,27/01/2022,Office Related Goods And Services,Interview Management IPS,Heathrow Airport,220023, 2.23 ,Rental Charges,Large,Programme Expenditure
UK Statistics Family,Office for National Statistics,04/01/2022,Surveys,Covid Infection Survey,IQVIA Limited,30003166," 4,469,873.87 ",Statistical Services,Large,Programme Expenditure
UK Statistics Family,Office for National Statistics,05/01/2022,Exp - Purchase Of Goods/Services - Incentive Payments,Covid Infection Survey,Sodexo Motivation Solutions U.K. ltd,30003167," 296,489.43 ",Survey Response Incentive Vouchers,Large,Programme Expenditure
UK Statistics Family,Office for National Statistics,06/01/2022,Exp - Purchase Of Goods/Services - Incentive Payments,Covid Infection Survey,Sodexo Motivation Solutions U.K. ltd,30003168," 1,402,434.25 ",Survey Response Incentive Vouchers,Large,Programme Expenditure
UK Statistics Family,Office for National Statistics,10/01/2022,Exp - Purchase Of Goods/Services - Incentive Payments,Covid Infection Survey,Sodexo Motivation Solutions U.K. ltd,30003170," 677,340.66 ",Survey Response Incentive Vouchers,Large,Programme Expenditure
UK Statistics Family,Office for National Statistics,13/01/2022,Exp - Purchase Of Goods/Services - Incentive Payments,Covid Infection Survey,Sodexo Motivation Solutions U.K. ltd,30003175," 1,956,213.86 ",Survey Response Incentive Vouchers,Large,Programme Expenditure
UK Statistics Family,Office for National Statistics,14/01/2022,Exp - Purchase Of Goods/Services - Incentive Payments,Covid Infection Survey,Sodexo Motivation Solutions U.K. ltd,30003177," 282,472.80 ",Survey Response Incentive Vouchers,Large,Programme Expenditure
UK Statistics Family,Office for National Statistics,17/01/2022,Exp - Purchase Of Goods/Services - Incentive Payments,Covid Infection Survey,Sodexo Motivation Solutions U.K. ltd,30003178," 111,492.94 ",Survey Response Incentive Vouchers,Large,Programme Expenditure
UK Statistics Family,Office for National Statistics,17/01/2022,Specialist User Software And Hardware,Learning And Capability,getAbstract AG,30003179," 55,600.00 ",Software Licenses,SME,Programme Expenditure
UK Statistics Family,Office for National Statistics,19/01/2022,Exp - Purchase Of Goods/Services - Incentive Payments,Covid Infection Survey,Sodexo Motivation Solutions U.K. ltd,30003181," 79,567.20 ",Survey Response Incentive Vouchers,Large,Programme Expenditure
UK Statistics Family,Office for National Statistics,20/01/2022,Surveys,ECONOMIC CHANGE,Bureau Van Dijk Electronic Publishing,30003186," 64,512.00 ",Training and Educational Services,SME,Programme Expenditure
UK Statistics Family,Office for National Statistics,21/01/2022,Exp - Purchase Of Goods/Services - Incentive Payments,Covid Infection Survey,Sodexo Motivation Solutions U.K. ltd,30003187," 1,791,781.71 ",Survey Response Incentive Vouchers,Large,Programme Expenditure
UK Statistics Family,Office for National Statistics,24/01/2022,Stationery,Lodgecard,Royal Bank of Scotland,30003189," 4,603.88 ",Multiple Procurement Card Purchases  - Stationery ,Large,Programme Expenditure
UK Statistics Family,Office for National Statistics,24/01/2022,Other Goods And Services,GPC,Royal Bank of Scotland,30003189," 39,672.92 ",Multiple Procurement Card Purchases - other goods/services  ,Large,Programme Expenditure
UK Statistics Family,Office for National Statistics,24/01/2022,Travel And Subsistence,Car Hire,Royal Bank of Scotland,30003189," 8,592.69 ",Multiple Procurement Card Purchases - Vehicle Hire  ,Large,Programme Expenditure
UK Statistics Family,Office for National Statistics,26/01/2022,Surveys,Covid Infection Survey,IQVIA Limited,30003191," 21,120,000.00 ",Statistical Services,Large,Programme Expenditure
UK Statistics Family,Office for National Statistics,26/01/2022,Exp - Purchase Of Goods/Services - Incentive Payments,Covid Infection Survey,Sodexo Motivation Solutions U.K. ltd,30003192," 401,322.89 ",Survey Response Incentive Vouchers,Large,Programme Expenditure
UK Statistics Family,Office for National Statistics,26/01/2022,Exp - Purchase Of Goods/Services - Incentive Payments,Covid Infection Survey,Sodexo Motivation Solutions U.K. ltd,30003194," 83,066.40 ",Survey Response Incentive Vouchers,Large,Programme Expenditure
UK Statistics Family,Office for National Statistics,27/01/2022,Exp - Purchase Of Goods/Services - Incentive Payments,Covid Infection Survey,Sodexo Motivation Solutions U.K. ltd,30003195," 1,536,184.97 ",Survey Response Incentive Vouchers,Large,Programme Expenditure
UK Statistics Family,Office for National Statistics,31/01/2022,Exp - Purchase Of Goods/Services - Contractors,Digital Publishing,Talent International,30003200," 28,146.00 ",Information Management Services,SME,Programme Expenditure
UK Statistics Family,Office for National Statistics,31/01/2022,Surveys,Social Surveys Division,Natcen Social Research,30003202," 52,281.48 ",Statistical Services,Large,Programme Expenditure
UK Statistics Family,Office for National Statistics,31/01/2022,Postage,Survey Processing Centre,DHL Parcel Ltd,30003203," 25,270.86 ",Postage Services,Large,Programme Expenditure
UK Statistics Family,Office for National Statistics,31/01/2022,Exp - Purchase Of Goods/Services - Contractors,Digital Publishing,Certes Computing Ltd,30003206," 25,363.80 ",Information Management Services,SME,Programme Expenditure
UK Statistics Family,Office for National Statistics,31/01/2022,Print & Post,Survey Processing Centre,APS Group,30003207," 3,076.80 ",Print and Post Services,Large,Programme Expenditure
UK Statistics Family,Office for National Statistics,31/01/2022,Print & Post,Social Survey Transformation Newport,APS Group,30003207," 107,424.37 ",Print and Post Services,Large,Programme Expenditure
UK Statistics Family,Office for National Statistics,31/01/2022,Exp - Purchase Of Goods/Services - Incentive Payments,Covid Infection Survey,Sodexo Motivation Solutions U.K. ltd,30003208," 597,678.09 ",Survey Response Incentive Vouchers,Large,Programme Expenditure
,,,,,,," 47,955,086.14 ",,,
